fUSD/lending_fUSD_20250416
["ID","MTS","AMOUNT","RATE_DAILY","PERIOD"]
[358196461,1744829441989,-500.0,0.00055041,120]
[358196462,1744829442000,-500.0,0.00055041,120]
[358196463,1744829442011,-500.0,0.00055041,120]
[358196464,1744829442022,-500.0,0.00055041,120]
[358196465,1744829442033,-500.0,0.00055041,120]
[358196466,1744829442044,-300.0,0.00055041,120]
[358196467,1744829442055,-500.0,0.00055041,120]
[358196468,1744829442067,-500.0,0.00055041,120]
[358196469,1744829442078,-500.0,0.00055041,120]
[358196470,1744829442088,-500.0,0.00055041,120]
[358196471,1744829442099,-1000.0,0.00055041,120]
[358196472,1744829442110,-500.0,0.00055041,120]
[358196473,1744829442121,-1000.0,0.00055041,120]
[358196474,1744829442131,-500.0,0.00055041,120]
[358196475,1744829442142,-500.0,0.00055041,120]
[358196476,1744829442152,-500.0,0.00055041,120]
[358196477,1744829442162,-257.91465907,0.00055041,120]
[358196478,1744829442175,-500.0,0.00055041,120]
[358196479,1744829442186,-599.07316978,0.00055041,120]
[358196480,1744829442196,-500.0,0.00055041,120]
[358196481,1744829442209,-500.0,0.00055041,120]
[358196482,1744829442220,-500.0,0.00055041,120]
[358196483,1744829442231,-500.0,0.00055041,120]
[358196484,1744829442242,-500.0,0.00055041,120]
[358196485,1744829442252,-500.0,0.00055041,120]
[358196486,1744829442263,-500.0,0.00055041,120]
[358196487,1744829442274,-500.0,0.00055041,120]
[358196488,1744829442286,-500.0,0.00055041,120]
[358196489,1744829442299,-500.0,0.00055041,120]
[358196490,1744829442311,-500.0,0.00055041,120]
[358196491,1744829442322,-500.0,0.00055041,120]
[358196492,1744829442333,-500.0,0.00055041,120]
[358196493,1744829442343,-500.0,0.00055041,120]
[358196494,1744829442354,-500.0,0.00055041,120]
[358196495,1744829442364,-500.0,0.00055041,14]
[358196496,1744829442375,-500.0,0.00055041,120]
[358196497,1744829442385,-206.72,0.00055041,120]
[358196498,1744829442396,-500.0,0.00055041,120]
[358196499,1744829442406,-500.0,0.00055041,120]
[358196500,1744829442418,-500.0,0.00055041,120]
[358196501,1744829442428,-500.0,0.00055041,120]
[358196502,1744829442439,-500.0,0.00055041,120]
[358196503,1744829442450,-500.0,0.00055041,120]
[358196504,1744829442460,-500.0,0.00055041,120]
[358196505,1744829442472,-500.0,0.00055041,120]
[358196506,1744829442700,-500.0,0.00055041,120]
[358196507,1744829442710,-500.0,0.00055041,120]
[358196508,1744829442720,-500.0,0.00055041,14]
[358196509,1744829442729,-500.0,0.00055041,120]
[358196510,1744829442738,-500.0,0.00055041,120]
[358196511,1744829442748,-500.0,0.00055041,120]
[358196512,1744829442758,-500.0,0.00055041,120]
[358196513,1744829442768,-500.0,0.00055041,120]
[358196514,1744829442778,-500.0,0.00055041,120]
[358196515,1744829442787,-500.0,0.00055041,120]
[358196516,1744829442796,-614.69822907,0.00055041,120]
[358196517,1744829442807,-500.0,0.00055041,120]
[358196518,1744829442817,-500.0,0.00055041,120]
[358196519,1744829442827,-500.0,0.00055041,120]
[358196520,1744829442837,-500.0,0.00055041,120]
[358196521,1744829442846,-500.0,0.00055041,120]
[358196522,1744829442855,-500.0,0.00055041,120]
[358196523,1744829442864,-500.0,0.00055041,120]
[358196525,1744829442874,-500.0,0.00055041,120]
[358196526,1744829442883,-500.0,0.00055041,120]
[358196527,1744829442892,-500.0,0.00055041,120]
[358196528,1744829442901,-500.0,0.00055041,120]
[358196529,1744829442910,-500.0,0.00055041,120]
[358196531,1744829442920,-500.0,0.00055041,120]
[358196532,1744829442929,-500.0,0.00055041,120]
[358196533,1744829442938,-500.0,0.00055041,120]
[358196534,1744829442947,-500.0,0.00055041,120]
[358196535,1744829442956,-500.0,0.00055041,120]
[358196536,1744829442965,-500.0,0.00055041,120]
[358196537,1744829442974,-500.0,0.00055041,120]
[358196538,1744829442984,-500.0,0.00055041,120]
[358196540,1744829442993,-500.0,0.00055041,120]
[358196542,1744829443003,-500.0,0.00055041,120]
[358196544,1744829443012,-500.0,0.00055041,120]
[358196547,1744829443022,-500.0,0.00055041,120]
[358196550,1744829443031,-500.0,0.00055041,120]
[358196552,1744829443040,-500.0,0.00055041,7]
[358196555,1744829443049,-500.0,0.00055041,120]
[358196558,1744829443059,-500.0,0.00055041,120]
[358196560,1744829443068,-604.71640579,0.00055041,30]
[358196563,1744829443077,-500.0,0.00055041,120]
[358196565,1744829443087,-500.0,0.00055041,120]
[358196567,1744829443096,-500.0,0.00055041,120]
[358196568,1744829443105,-500.0,0.00055041,120]
[358196569,1744829443114,-500.0,0.00055041,120]
[358196570,1744829443123,-500.0,0.00055041,120]
[358196571,1744829443132,-1163.49,0.00055043,120]
[358196572,1744829443141,-500.0,0.00055043,120]
[358196573,1744829443151,-500.0,0.00055043,120]
[358196574,1744829443160,-500.0,0.00055043,120]
[358196575,1744829443169,-500.0,0.00055053,120]
[358196576,1744829443178,-500.0,0.00055062,120]
[358196577,1744829443187,-1163.49,0.00055062,120]
[358196578,1744829443197,-500.0,0.00055062,120]
[358196579,1744829443208,-500.0,0.00055062,120]
[358196580,1744829443217,-500.0,0.00055062,120]
[358196581,1744829443227,-500.0,0.00055062,120]
[358196582,1744829443236,-500.0,0.00055062,120]
[358196583,1744829443246,-398.4766059,0.00055062,120]
[358196584,1744829443255,-450.78791166,0.00055062,120]
[358196585,1744829443265,-500.0,0.00055062,120]
[358196586,1744829443274,-500.0,0.00055062,120]
[358196587,1744829443285,-500.0,0.00055062,120]
[358196588,1744829443295,-500.0,0.00055062,120]
[358196589,1744829443305,-500.0,0.00055062,120]
[358196590,1744829443314,-500.0,0.00055062,120]
[358196591,1744829443324,-500.0,0.00055062,120]
[358196592,1744829443334,-500.0,0.00055062,120]
[358196593,1744829443343,-500.0,0.00055062,120]
[358196594,1744829443352,-500.0,0.00055062,120]
[358196595,1744829443362,-1000.0,0.00055062,120]
[358196596,1744829443372,-157.97373197,0.00055062,120]
[358196597,1744829443381,-500.0,0.00055062,120]
[358196598,1744829443391,-500.0,0.00055062,120]
[358196599,1744829443401,-500.0,0.00055062,120]
[358196600,1744829443410,-500.0,0.00055062,120]
[358196601,1744829443420,-500.0,0.00055062,120]
[358196602,1744829443429,-500.0,0.00055062,120]
[358196603,1744829443438,-500.0,0.00055062,120]
[358196604,1744829443448,-500.0,0.00055062,120]
[358196605,1744829443457,-500.0,0.00055062,120]
[358196606,1744829443466,-500.0,0.00055062,120]
[358196607,1744829443475,-500.0,0.00055062,120]
[358196608,1744829443485,-500.0,0.00055062,120]
[358196609,1744829443494,-339.10188556,0.00055062,120]
[358196610,1744829443503,-500.0,0.00055062,120]
[358196612,1744829443512,-500.0,0.00055062,120]
[358196613,1744829443522,-500.0,0.00055062,120]
[358196615,1744829443531,-500.0,0.00055062,120]
[358196616,1744829443541,-500.0,0.00055062,120]
[358196617,1744829443550,-500.0,0.00055062,120]
[358196618,1744829443562,-500.0,0.00055062,120]
[358196619,1744829443571,-500.0,0.00055062,120]
[358196620,1744829443580,-500.0,0.00055062,120]
[358196621,1744829443590,-500.0,0.00055062,120]
[358196622,1744829443599,-500.0,0.00055062,120]
[358196623,1744829443608,-500.0,0.00055062,120]
[358196625,1744829443618,-443.60805055,0.00055062,120]
[358196627,1744829443628,-500.0,0.00055062,120]
[358196629,1744829443637,-500.0,0.00055062,120]
[358196631,1744829443647,-500.0,0.00055062,120]
[358196633,1744829443656,-500.0,0.00055062,120]
[358196635,1744829443665,-500.0,0.00055062,120]
[358196637,1744829443675,-500.0,0.00055062,120]
[358196639,1744829443684,-500.0,0.00055062,120]
[358196641,1744829443694,-500.0,0.00055062,120]
[358196643,1744829443703,-300.0,0.00055062,120]
[358196645,1744829443713,-500.0,0.00055062,120]
[358196646,1744829443722,-500.0,0.00055062,120]
[358196647,1744829443731,-500.0,0.00055062,120]
[358196648,1744829443741,-1000.0,0.00055062,120]
[358196649,1744829443750,-500.0,0.00055062,120]
[358196650,1744829443761,-500.0,0.00055062,120]
[358196651,1744829443770,-500.0,0.00055062,120]
[358196652,1744829443780,-436.17201218,0.00055062,120]
[358196653,1744829443789,-500.0,0.00055062,120]
[358196654,1744829443798,-500.0,0.00055062,120]
[358196655,1744829443811,-500.0,0.00055062,120]
[358196656,1744829443821,-500.0,0.00055062,120]
[358196657,1744829443830,-500.0,0.00055062,14]
[358196658,1744829443840,-500.0,0.00055062,120]
[358196659,1744829443850,-500.0,0.00055062,120]
[358196660,1744829443860,-399.70721051,0.00055062,120]
[358196661,1744829443870,-500.0,0.00055062,120]
[358196662,1744829443881,-500.0,0.00055062,120]
[358196663,1744829443890,-500.0,0.00055062,120]
[358196664,1744829443900,-500.0,0.00055062,120]
[358196665,1744829443909,-500.0,0.00055062,14]
[358196666,1744829443919,-500.0,0.00055062,120]
[358196667,1744829443929,-500.0,0.00055062,120]
[358196668,1744829443938,-500.0,0.00055062,120]
[358196669,1744829443947,-500.0,0.00055062,120]
[358196670,1744829443957,-500.0,0.00055062,120]
[358196671,1744829443966,-500.0,0.00055062,120]
[358196672,1744829443975,-500.0,0.00055062,120]
[358196673,1744829443984,-500.0,0.00055062,120]
[358196674,1744829443994,-500.0,0.00055062,120]
[358196675,1744829444004,-265.28,0.00055062,120]
[358196676,1744829444013,-500.0,0.00055062,120]
[358196677,1744829444023,-500.0,0.00055062,120]
[358196678,1744829444032,-500.0,0.00055062,120]
[358196679,1744829444042,-500.0,0.00055062,120]
[358196680,1744829444052,-500.0,0.00055062,120]
[358196681,1744829444067,-500.0,0.00055062,120]
[358196682,1744829444077,-500.0,0.00055062,120]
[358196683,1744829444087,-500.0,0.00055062,120]
[358196684,1744829444096,-328.11,0.00055062,120]
[358196685,1744829444106,-500.0,0.00055062,120]
[358196686,1744829444116,-500.0,0.00055062,120]
[358196687,1744829444126,-500.0,0.00055062,120]
[358196688,1744829444136,-500.0,0.00055062,120]
[358196689,1744829444146,-500.0,0.00055062,120]
[358196690,1744829444156,-500.0,0.00055062,120]
[358196691,1744829444166,-315.55386625,0.00055066,15]
[358196692,1744829444176,-1000.0,0.000551,7]
[358196693,1744829444186,-315.55386625,0.0005517,15]
[358196694,1744829444196,-150.0,0.00055187,120]
[358196695,1744829444206,-1577.0,0.000552,7]
[358196696,1744829444216,-906.72954272,0.00055236,15]
[358196697,1744829444226,-170.60205599,0.00055236,28]
[358196698,1744829444236,-150.0,0.00055237,14]
[358196699,1744829444248,-152.93788103,0.00055262,60]
[358196700,1744829444258,-315.55386625,0.00055275,15]
[358196701,1744829444269,-150.0,0.00055285,14]
[358196702,1744829444279,-150.0,0.00055294,14]
[358196703,1744829444290,-150.0,0.00055302,14]
[358196704,1744829444304,-906.72954269,0.0005531,15]
[358196705,1744829444532,-728.98,0.00055316,30]
[358196706,1744829444542,-290.73643918,0.00055325,120]
[358196707,1744829444552,-41366.1594252,0.00055326,3]
[358196708,1744829444568,-13788.7198084,0.00055327,3]
[358196709,1744829444577,-1141.98,0.00055335,2]
[358196710,1744829444587,-500.0,0.00055335,120]
[358196711,1744829444596,-627.83,0.00055335,120]
[358196712,1744829444606,-587.80284932,0.00055335,120]
[358196713,1744829444615,-500.0,0.00055335,120]
[358196714,1744829444624,-500.0,0.00055335,120]
[358196715,1744829444633,-500.0,0.00055335,120]
[358196716,1744829444643,-500.0,0.00055335,120]
[358196717,1744829444652,-500.0,0.00055335,120]
[358196718,1744829444661,-500.0,0.00055335,120]
[358196719,1744829444671,-500.0,0.00055335,120]
[358196720,1744829444681,-500.0,0.00055335,118]
[358196721,1744829444690,-500.0,0.00055335,120]
[358196722,1744829444699,-500.0,0.00055335,120]
[358196723,1744829444709,-500.0,0.00055335,120]
[358196724,1744829444718,-500.0,0.00055335,120]
[358196725,1744829444727,-618.05971789,0.00055335,120]
[358196726,1744829444736,-500.0,0.00055336,120]
[358196727,1744829444745,-1163.49,0.00055336,120]
[358196728,1744829444755,-500.0,0.00055336,120]
[358196729,1744829444765,-500.0,0.00055336,120]
[358196730,1744829444774,-500.0,0.00055336,120]
[358196731,1744829444783,-500.0,0.00055336,120]
[358196732,1744829444793,-500.0,0.00055336,120]
[358196733,1744829444803,-500.0,0.00055336,120]
[358196734,1744829444814,-620.16,0.00055336,120]
[358196735,1744829444824,-500.0,0.00055336,120]
[358196736,1744829444833,-500.0,0.00055336,120]
[358196737,1744829444843,-500.0,0.00055336,120]
[358196738,1744829444852,-500.0,0.00055336,120]
[358196739,1744829444861,-500.0,0.00055336,120]
[358196740,1744829444870,-500.0,0.00055336,120]
[358196741,1744829444879,-500.0,0.00055336,120]
[358196742,1744829444889,-343.08,0.00055336,120]
[358196743,1744829444898,-500.0,0.00055336,120]
[358196744,1744829444907,-500.0,0.00055336,120]
[358196745,1744829444917,-500.0,0.00055336,120]
[358196746,1744829444927,-500.0,0.00055336,120]
[358196747,1744829444936,-500.0,0.00055336,120]
[358196748,1744829444945,-500.0,0.00055336,120]
[358196749,1744829444954,-608.28,0.00055336,120]
[358196750,1744829444963,-500.0,0.00055336,120]
[358196751,1744829444972,-500.0,0.00055336,120]
[358196752,1744829444982,-500.0,0.00055336,120]
[358196753,1744829444990,-500.0,0.00055336,120]
[358196754,1744829445000,-211.25650313,0.00055336,120]
[358196755,1744829445009,-500.0,0.00055336,120]
[358196756,1744829445018,-500.0,0.00055336,120]
[358196757,1744829445028,-500.0,0.00055336,120]
[358196758,1744829445036,-500.0,0.00055336,120]
[358196759,1744829445045,-500.0,0.00055336,120]
[358196760,1744829445055,-500.0,0.00055336,120]
[358196761,1744829445068,-500.0,0.00055336,120]
[358196762,1744829445077,-500.0,0.00055336,120]
[358196763,1744829445085,-500.0,0.00055336,120]
[358196764,1744829445094,-500.0,0.00055336,120]
[358196765,1744829445103,-500.0,0.00055336,120]
[358196766,1744829445112,-500.0,0.00055336,120]
[358196767,1744829445121,-500.0,0.00055336,120]
[358196768,1744829445131,-500.0,0.00055336,120]
[358196769,1744829445140,-500.0,0.00055336,120]
[358196770,1744829445150,-500.0,0.00055336,120]
[358196771,1744829445159,-300.0,0.00055336,120]
[358196772,1744829445169,-500.0,0.00055336,120]
[358196773,1744829445178,-22417.15752903,0.00055336,7]
[358196774,1744829445197,-76516.02288792,0.00055336,7]
[358196775,1744829445219,-2076.32958305,0.00055336,7]
[358196776,1744829445229,-500.0,0.00055336,120]
[358196777,1744829445238,-500.0,0.00055336,120]
[358196778,1744829445247,-468.97985686,0.00055336,120]
[358196779,1744829445257,-500.0,0.00055336,120]
[358196780,1744829445266,-500.0,0.00055336,120]
[358196781,1744829445275,-332.19,0.00055336,120]
[358196782,1744829445285,-500.0,0.00055336,120]
[358196783,1744829445295,-500.0,0.00055336,120]
[358196784,1744829445305,-500.0,0.00055336,120]
[358196785,1744829445318,-500.0,0.00055336,120]
[358196786,1744829445327,-500.0,0.00055336,120]
[358196787,1744829445337,-500.0,0.00055336,120]
[358196788,1744829445346,-500.0,0.00055336,120]
[358196789,1744829445355,-500.0,0.00055336,120]
[358196790,1744829445364,-500.0,0.00055336,120]
[358196791,1744829445373,-500.0,0.00055336,120]
[358196792,1744829445383,-500.0,0.00055336,120]
[358196793,1744829445392,-500.0,0.00055336,120]
[358196794,1744829445401,-527.26,0.00055336,120]
[358196795,1744829445411,-500.0,0.00055336,120]
[358196796,1744829445420,-500.0,0.00055336,120]
[358196797,1744829445429,-500.0,0.00055336,120]
[358196798,1744829445438,-500.0,0.00055336,120]
[358196799,1744829445448,-500.0,0.00055336,120]
[358196800,1744829445457,-500.0,0.00055336,120]
[358196801,1744829445466,-500.0,0.00055336,120]
[358196802,1744829445476,-500.0,0.00055336,120]
[358196803,1744829445485,-427.45853364,0.00055336,120]
[358196804,1744829445495,-509.32,0.00055336,7]
[358196805,1744829445505,-500.0,0.00055336,14]
[358196806,1744829445513,-384.36238685,0.00055336,120]
[358196807,1744829445525,-115.63761415,0.00055336,120]
[358196808,1744829445535,-186.56508585,0.00055336,120]
[358196814,1744829447108,-313.43491415,0.00055336,120]
[358196815,1744829447118,-500.0,0.00055336,120]
[358196816,1744829447129,-500.0,0.00055336,120]
[358196817,1744829447139,-500.0,0.00055336,120]
[358196818,1744829447148,-500.0,0.00055336,120]
[358196819,1744829447158,-500.0,0.00055336,120]
[358196820,1744829447167,-500.0,0.00055336,14]
[358196821,1744829447176,-500.0,0.00055336,120]
[358196822,1744829447186,-500.0,0.00055336,120]
[358196823,1744829447195,-384.55562359,0.00055336,120]
[358196824,1744829447205,-153.10079272,0.00055336,120]
[358196825,1744829447216,-500.0,0.00055336,120]
[358196826,1744829447226,-500.0,0.00055336,120]
[358196827,1744829447236,-500.0,0.00055336,120]
[358196828,1744829447247,-500.0,0.00055336,120]
[358196829,1744829447256,-161.14,0.00055336,120]
[358196830,1744829447265,-500.0,0.00055336,120]
[358196831,1744829447275,-373.53032778,0.00055336,120]
[358196832,1744829447284,-500.0,0.00055336,120]
[358196833,1744829447295,-500.0,0.00055336,120]
[358196834,1744829447305,-500.0,0.00055336,120]
[358196835,1744829447316,-500.0,0.00055336,120]
[358196836,1744829447325,-500.0,0.00055336,120]
[358196837,1744829447335,-500.0,0.00055336,120]
[358196838,1744829447344,-500.0,0.00055336,120]
[358196839,1744829447355,-2266.06,0.00055336,120]
[358196840,1744829447364,-500.0,0.00055336,120]
[358196841,1744829447374,-500.0,0.00055336,120]
[358196842,1744829447383,-500.0,0.00055336,120]
[358196843,1744829447393,-500.0,0.00055336,120]
[358196844,1744829447403,-500.0,0.00055336,120]
[358196845,1744829447413,-500.0,0.00055336,120]
[358196846,1744829447422,-168.12834176,0.00055336,120]
[358196847,1744829447438,-331.87165824,0.00055336,120]
[358196848,1744829447447,-500.0,0.00055336,120]
[358196849,1744829447456,-500.0,0.00055336,120]
[358196850,1744829447466,-500.0,0.00055336,120]
[358196851,1744829447475,-244.01283502,0.00055336,120]
[358196852,1744829447486,-255.98716498,0.00055336,120]
[358196853,1744829447496,-500.0,0.00055336,120]
[358196854,1744829447505,-500.0,0.00055336,120]
[358196855,1744829447515,-500.0,0.00055336,120]
[358196856,1744829447524,-500.0,0.00055336,120]
[358196857,1744829447534,-500.0,0.00055336,120]
[358196858,1744829447544,-500.0,0.00055336,120]
[358196859,1744829447554,-1762.07,0.00055336,120]
[358196860,1744829447566,-500.0,0.00055336,120]
[358196861,1744829447576,-500.0,0.00055336,120]
[358196862,1744829447585,-500.0,0.00055336,120]
[358196863,1744829447595,-500.0,0.00055336,120]
[358196864,1744829447605,-688.19,0.00055336,120]
[358196865,1744829447615,-500.0,0.00055336,120]
[358196866,1744829447624,-500.0,0.00055336,120]
[358196867,1744829447633,-500.0,0.00055336,120]
[358196868,1744829447642,-500.0,0.00055336,120]
[358196869,1744829447652,-248.61643703,0.00055336,120]
[358196870,1744829447661,-292.55561021,0.00055336,120]
[358196871,1744829447670,-59.66865621,0.00055336,120]
[358196872,1744829447697,-440.33134379,0.00055336,120]
[358196873,1744829447706,-500.0,0.00055336,120]
[358196874,1744829447716,-500.0,0.00055336,120]
[358196875,1744829447726,-500.0,0.00055337,120]
[358196876,1744829447735,-500.0,0.00055337,120]
[358196877,1744829447746,-500.0,0.00055337,120]
[358196878,1744829447756,-500.0,0.00055337,120]
[358196879,1744829447766,-505.83,0.00055337,120]
[358196880,1744829447775,-500.0,0.00055337,120]
[358196881,1744829447783,-151.0,0.00055337,120]
[358196882,1744829447793,-151.0,0.00055337,120]
[358196883,1744829447802,-151.0,0.00055337,120]
[358196884,1744829447812,-151.0,0.00055337,120]
[358196885,1744829447822,-151.0,0.00055337,120]
[358196886,1744829447831,-151.0,0.00055337,120]
[358196887,1744829447841,-154.87650974,0.00055337,120]
[358196888,1744829447850,-500.0,0.00055337,120]
[358196889,1744829447859,-396.09867375,0.00055337,120]
[358196890,1744829447870,-122.40132625,0.00055337,120]
[358196891,1744829447879,-537.6845,0.00055337,120]
[358196892,1744829447888,-930.46198567,0.00055337,120]
[358196893,1744829447897,-200.0,0.00055337,120]
[358196894,1744829447906,-207.4,0.00055337,120]
[358196895,1744829447913,-215.0738,0.00055337,120]
[358196896,1744829447923,-223.0315306,0.00055337,120]
[358196897,1744829447933,-231.28369723,0.00055337,120]
[358196898,1744829447943,-239.84119403,0.00055337,120]
[358196899,1744829447953,-248.71531821,0.00055337,120]
[358196900,1744829447964,-257.91778498,0.00055337,120]
[358196901,1744829447973,-267.46074303,0.00055337,120]
[358196902,1744829447983,-277.35679052,0.00055337,120]
[358196903,1744829447993,-57.87864948,0.00055337,120]
[358196904,1744829448009,-229.74034229,0.00055337,120]
[358196905,1744829448019,-298.26089446,0.00055337,120]
[358196906,1744829448029,-309.29654756,0.00055337,120]
[358196907,1744829448039,-320.74051982,0.00055337,120]
[358196908,1744829448048,-55.30365694,0.00055337,120]
[358196909,1744829448061,-277.30426211,0.00055337,120]
[358196910,1744829448071,-344.91441206,0.00055337,120]
[358196911,1744829448081,-357.6762453,0.00055337,120]
[358196912,1744829448091,-370.91026638,0.00055337,120]
[358196913,1744829448101,-384.63394623,0.00055337,120]
[358196914,1744829448112,-600.0,0.00055337,120]
[358196915,1744829448128,-156.587,0.00055337,120]
[358196916,1744829448139,-500.0,0.00055337,120]
[358196917,1744829448149,-1157.97386792,0.00055361,27]
[358196918,1744829448161,-1104.71965132,0.00055361,27]
[358196919,1744829448171,-156.51782044,0.00055367,35]
[358196920,1744829448183,-156.51782044,0.00055371,35]
[358196921,1744829448193,-156.51782044,0.00055375,35]
[358196922,1744829448206,-315.55386625,0.00055379,15]
[358196923,1744829448218,-906.72954269,0.00055383,15]
[358196924,1744829448228,-150.0,0.00055398,14]
[358196925,1744829448237,-150.0,0.00055398,14]
[358196926,1744829448248,-235.0,0.000554,30]
[358196927,1744829448257,-670.81971293,0.000554,2]
[358196928,1744829448476,-497.16062708,0.00055041,120]
[358196929,1744829448489,-2.83937292,0.00055041,120]
[358196930,1744829448499,-2052.73561212,0.000554,2]
[358196931,1744829448509,-224.72540132,0.000554,2]
[358196932,1744829448518,-150.0,0.00055428,14]
[358196933,1744829448527,-654.995718,0.00055437,3]
[358196934,1744829448539,-654.14648305,0.00055437,3]
[358196935,1744829448551,-26268.29741575,0.00055437,3]
[358196936,1744829448562,-150.0,0.00055442,14]
[358196937,1744829448572,-13788.7198084,0.00055446,3]
[358196938,1744829448581,-1166.92,0.00055447,120]
[358196939,1744829448591,-1556.49,0.00055447,120]
[358196940,1744829448600,-761.11,0.00055447,8]
[358196941,1744829448610,-1079.55,0.00055447,120]
[358196942,1744829448620,-500.0,0.00055447,120]
[358196943,1744829448630,-500.0,0.00055447,120]
[358196944,1744829448640,-500.0,0.00055447,120]
[358196945,1744829448650,-500.0,0.00055447,120]
[358196946,1744829448660,-500.0,0.00055447,120]
[358196947,1744829448669,-500.0,0.00055447,120]
[358196948,1744829448679,-500.0,0.00055447,120]
[358196949,1744829448689,-500.0,0.00055447,120]
[358196950,1744829448699,-500.0,0.00055447,120]
[358196951,1744829448709,-500.0,0.00055447,120]
[358196952,1744829448718,-500.0,0.00055447,120]
[358196953,1744829448727,-500.0,0.00055447,120]
[358196954,1744829448737,-500.0,0.00055447,120]
[358196955,1744829448749,-500.0,0.00055447,120]
[358196956,1744829448759,-500.0,0.00055447,120]
[358196957,1744829448769,-500.0,0.00055447,120]
[358196958,1744829448781,-500.0,0.00055447,120]
[358196959,1744829448791,-500.0,0.00055447,120]
[358196960,1744829448801,-580.68276859,0.00055447,120]
[358196961,1744829448811,-500.0,0.00055447,120]
[358196962,1744829448820,-510.07878544,0.00055447,120]
[358196963,1744829448830,-500.0,0.00055447,120]
[358196964,1744829448839,-500.0,0.00055447,120]
[358196965,1744829448849,-500.0,0.00055447,120]
[358196966,1744829448859,-500.0,0.00055447,120]
[358196967,1744829448869,-500.0,0.00055447,120]
[358196968,1744829448879,-500.0,0.00055447,120]
[358196969,1744829448889,-500.0,0.00055447,120]
[358196970,1744829448899,-500.0,0.00055447,120]
[358196971,1744829448908,-500.0,0.00055447,120]
[358196972,1744829448918,-267.36364978,0.00055447,120]
[358196973,1744829448928,-500.0,0.00055447,120]
[358196974,1744829448938,-500.0,0.00055447,120]
[358196975,1744829448947,-500.0,0.00055447,120]
[358196976,1744829448957,-500.0,0.00055447,120]
[358196977,1744829448966,-500.0,0.00055447,120]
[358196978,1744829448976,-500.0,0.00055447,120]
[358196979,1744829448985,-500.0,0.00055447,120]
[358196980,1744829448995,-500.0,0.00055447,120]
[358196981,1744829449005,-500.0,0.00055447,120]
[358196982,1744829449015,-500.0,0.00055447,120]
[358196983,1744829449024,-729.89,0.00055447,120]
[358196984,1744829449034,-500.0,0.00055447,120]
[358196985,1744829449043,-500.0,0.00055447,120]
[358196986,1744829449053,-500.0,0.00055447,120]
[358196987,1744829449063,-500.0,0.00055447,120]
[358196988,1744829449072,-1772.28,0.00055447,120]
[358196989,1744829449082,-500.0,0.00055447,120]
[358196990,1744829449091,-500.0,0.00055447,120]
[358196991,1744829449100,-500.0,0.00055447,120]
[358196992,1744829449109,-500.0,0.00055447,120]
[358196993,1744829449119,-500.0,0.00055447,120]
[358196994,1744829449128,-1762.04,0.00055447,120]
[358196995,1744829449137,-526.23,0.00055447,120]
[358196996,1744829449146,-888.19,0.00055447,120]
[358196997,1744829449156,-500.0,0.00055447,120]